fUST/lending_fUST_20250817
["ID","MTS","AMOUNT","RATE_DAILY","PERIOD"]
[379936172,1755443444508,-480.0,0.0002,2]
[379936174,1755443444517,-480.0,0.0002,2]
[379936176,1755443444527,-480.0,0.0002,2]
[379936178,1755443444536,-480.0,0.0002,2]
[379936180,1755443444546,-480.0,0.0002,2]
[379936182,1755443444555,-226.11280198,0.0002,2]
[379936184,1755443444564,-480.0,0.0002,2]
[379936186,1755443444574,-480.0,0.0002,2]
[379936188,1755443444584,-1853.11,0.0002,2]
[379936190,1755443444593,-729.75,0.0002,2]
[379936192,1755443444603,-480.0,0.0002,2]
[379936194,1755443444612,-480.0,0.0002,2]
[379936196,1755443444621,-516.71,0.0002,2]
[379936198,1755443444631,-480.0,0.0002,2]
[379936200,1755443444640,-480.0,0.0002,2]
[379936201,1755443444649,-480.0,0.0002,2]
[379936203,1755443444658,-480.0,0.0002,2]
[379936205,1755443444667,-480.0,0.0002,2]
[379936207,1755443444676,-696.37,0.0002,2]
[379936209,1755443444686,-480.0,0.0002,2]
[379936211,1755443444695,-295.782101,0.0002,2]
[379936213,1755443444704,-480.0,0.0002,2]
[379936215,1755443444713,-2087.54,0.0002,2]
[379936217,1755443444723,-436.73,0.0002,2]
[379936219,1755443444732,-985.04,0.0002,2]
[379936221,1755443444741,-400.0,0.0002,2]
[379936223,1755443444750,-480.0,0.0002,2]
[379936225,1755443444759,-160.0,0.0002,3]
[379936227,1755443444769,-169.99034147,0.0002,2]
[379936229,1755443444778,-483.6704916,0.0002,2]
[379936230,1755443444789,-480.0,0.0002,2]
[379936232,1755443444799,-480.0,0.0002,2]
[379936234,1755443444808,-480.0,0.0002,2]
[379936236,1755443444818,-480.0,0.0002,2]
[379936238,1755443444828,-154.49321019,0.0002,2]
[379936240,1755443444838,-480.0,0.0002,2]
[379936242,1755443444847,-480.0,0.0002,2]
[379936244,1755443444857,-480.0,0.0002,2]
[379936246,1755443444867,-480.0,0.0002,2]
[379936248,1755443444878,-480.0,0.0002,2]
[379936250,1755443444888,-480.0,0.0002,2]
[379936252,1755443444898,-480.0,0.0002,2]
[379936254,1755443444908,-480.0,0.0002,2]
[379936256,1755443444917,-480.0,0.0002,2]
[379936258,1755443444926,-861.87,0.0002,2]
[379936260,1755443444936,-1422.38,0.0002,2]
[379936262,1755443444945,-477.73269909,0.0002,2]
[379936264,1755443444954,-480.0,0.0002,2]
[379936266,1755443444964,-159.9370558,0.0002,2]
[379936268,1755443444973,-328.0,0.00020035,2]
[379936270,1755443444983,-600.0,0.00020086,2]
[379936271,1755443444993,-500.0,0.00020095,2]
[379936273,1755443445003,-480.0,0.00020101,2]
[379936275,1755443445013,-480.0,0.00020101,2]
[379936277,1755443445023,-328.0,0.00020107,2]
[379936279,1755443445033,-563.1918724,0.00020109,2]
[379936281,1755443445042,-151.0,0.0002011,2]
[379936283,1755443445052,-151.0,0.0002011,2]
[379936285,1755443445062,-480.0,0.0002011,2]
[379936287,1755443445072,-304.770316,0.00020111,2]
[379936289,1755443445082,-304.770316,0.00020111,2]
[379936291,1755443445091,-328.0,0.00020156,2]
[379936293,1755443445101,-328.0,0.0002016,2]
[379936295,1755443445110,-545.144203,0.00020187,2]
[379936297,1755443445121,-220.75172192,0.00020251,2]
[379936299,1755443445130,-328.0,0.00020268,2]
[379936301,1755443445140,-1500.0,0.00020268,2]
[379936303,1755443445150,-1500.0,0.00020268,2]
[379936304,1755443445159,-1500.0,0.00020268,2]
[379936306,1755443445172,-1500.0,0.00020268,2]
[379936308,1755443445181,-500.0,0.00020272,2]
[379936310,1755443445190,-158.79,0.00020272,2]
[379936312,1755443445200,-290.77648597,0.00020273,2]
[379936314,1755443445210,-480.0,0.00020273,2]
[379936316,1755443445221,-480.0,0.00020273,2]
[379936318,1755443445234,-460.0,0.00020273,2]
[379936320,1755443445246,-480.0,0.00020273,2]
[379936321,1755443445255,-480.0,0.00020273,2]
[379936322,1755443445264,-480.0,0.00020273,2]
[379936323,1755443445273,-480.0,0.00020273,2]
[379936324,1755443445283,-480.0,0.00020273,2]
[379936325,1755443445292,-480.0,0.00020273,2]
[379936326,1755443445301,-480.0,0.00020273,2]
[379936327,1755443445311,-480.0,0.00020273,2]
[379936328,1755443445320,-480.0,0.00020273,2]
[379936329,1755443445329,-480.0,0.00020273,2]
[379936330,1755443445339,-480.0,0.00020273,2]
[379936331,1755443445348,-480.0,0.00020273,2]
[379936332,1755443445357,-2752.48,0.00020273,2]
[379936333,1755443445366,-480.0,0.00020273,2]
[379936334,1755443445375,-783.83,0.00020273,2]
[379936335,1755443445385,-480.0,0.00020273,2]
[379936336,1755443445393,-480.0,0.00020273,2]
[379936337,1755443445402,-480.0,0.00020273,2]
[379936338,1755443445411,-480.0,0.00020273,2]
[379936339,1755443445420,-480.0,0.00020273,2]
[379936340,1755443445429,-480.0,0.00020273,2]
[379936341,1755443445438,-480.0,0.00020273,2]
[379936342,1755443445447,-601.70206235,0.00020273,2]
[379936343,1755443445457,-480.0,0.00020273,2]
[379936344,1755443445466,-480.0,0.00020273,2]
[379936345,1755443445476,-1853.11,0.00020273,2]
[379936346,1755443445485,-729.75,0.00020273,2]
[379936347,1755443445494,-480.0,0.00020273,2]
[379936348,1755443445503,-516.71,0.00020273,2]
[379936349,1755443445512,-480.0,0.00020273,2]
[379936350,1755443445521,-480.0,0.00020273,2]
[379936351,1755443445530,-480.0,0.00020273,2]
[379936352,1755443445539,-480.0,0.00020273,2]
[379936353,1755443445548,-480.0,0.00020273,2]
[379936354,1755443445557,-696.37,0.00020273,2]
[379936355,1755443445566,-480.0,0.00020273,2]
[379936356,1755443445575,-2087.54,0.00020273,2]
[379936357,1755443445584,-985.04,0.00020273,2]
[379936358,1755443445593,-480.0,0.00020273,2]
[379936359,1755443445602,-412.83138638,0.00020273,2]
[379936360,1755443445611,-480.0,0.00020273,2]
[379936361,1755443445620,-480.0,0.00020273,2]
[379936362,1755443445629,-480.0,0.00020273,2]
[379936364,1755443445639,-480.0,0.00020273,2]
[379936366,1755443445649,-480.0,0.00020273,2]
[379936368,1755443445658,-480.0,0.00020273,2]
[379936370,1755443445668,-480.0,0.00020273,2]
[379936372,1755443445678,-480.0,0.00020273,2]
[379936374,1755443445687,-480.0,0.00020273,2]
[379936376,1755443445696,-480.0,0.00020273,2]
[379936378,1755443445706,-861.87,0.00020273,2]
[379936380,1755443445715,-1422.38,0.00020273,2]
[379936382,1755443445725,-223.340255,0.00020287,2]
[379936384,1755443445735,-328.0,0.00020297,2]
[379936386,1755443445744,-187.01279824,0.00020341,2]
[379936388,1755443445753,-500.0,0.00020341,2]
[379936390,1755443445762,-500.0,0.00020341,2]
[379936392,1755443445772,-480.0,0.00020375,2]
[379936394,1755443445782,-480.0,0.00020375,2]
[379936396,1755443445791,-617.52627527,0.00020384,2]
[379936398,1755443445800,-304.770316,0.000204,2]
[379936400,1755443445810,-304.770316,0.000204,2]
[379936402,1755443445819,-151.0,0.00020403,2]
[379936404,1755443445828,-151.0,0.00020403,2]
[379936406,1755443445837,-7062.17957482,0.00020403,2]
[379936407,1755443445846,-260.0,0.00020408,2]
[379936409,1755443445855,-1500.0,0.00020468,2]
[379936411,1755443445864,-248.09566986,0.00020483,2]
[379936413,1755443445874,-248.09566986,0.00020483,2]
[379936415,1755443445883,-151.0,0.000205,2]
[379936417,1755443445893,-151.0,0.000205,2]
[379936419,1755443445903,-151.0,0.000205,2]
[379936421,1755443445912,-151.0,0.000205,2]
[379936423,1755443445921,-229.231144,0.000205,2]
[379936425,1755443445930,-304.770316,0.000205,2]
[379936427,1755443445939,-304.770316,0.000205,2]
[379936429,1755443445948,-304.770316,0.000205,2]
[379936431,1755443445958,-304.770316,0.000205,2]
[379936433,1755443445967,-304.770316,0.000205,2]
[379936435,1755443445977,-304.770318,0.000205,2]
[379936437,1755443445987,-480.0,0.00020547,2]
[379936439,1755443445996,-225.19,0.00020547,2]
[379936441,1755443446006,-480.0,0.00020547,2]
[379936443,1755443446016,-480.0,0.00020547,2]
[379936445,1755443446025,-480.0,0.00020547,2]
[379936447,1755443446035,-480.0,0.00020547,2]
[379936449,1755443446044,-480.0,0.00020547,2]
[379936450,1755443446054,-480.0,0.00020547,2]
[379936452,1755443446065,-480.0,0.00020547,2]
[379936454,1755443446074,-480.0,0.00020547,2]
[379936456,1755443446084,-480.0,0.00020547,2]
[379936458,1755443446094,-480.0,0.00020547,2]
[379936460,1755443446103,-480.0,0.00020547,2]
[379936462,1755443446113,-2752.48,0.00020547,2]
[379936464,1755443446123,-480.0,0.00020547,2]
[379936466,1755443446132,-783.83,0.00020547,2]
[379936468,1755443446142,-480.0,0.00020547,2]
[379936470,1755443446152,-480.0,0.00020547,2]
[379936472,1755443446163,-480.0,0.00020547,2]
[379936474,1755443446174,-480.0,0.00020547,2]
[379936476,1755443446183,-480.0,0.00020547,2]
[379936478,1755443446192,-480.0,0.00020547,2]
[379936480,1755443446201,-414.9366422,0.00020547,2]
[379936482,1755443446212,-480.0,0.00020547,2]
[379936484,1755443446222,-1853.11,0.00020547,2]
[379936485,1755443446234,-729.75,0.00020547,2]
[379936487,1755443446246,-516.71,0.00020547,2]
[379936489,1755443446257,-480.0,0.00020547,2]
[379936491,1755443446266,-480.0,0.00020547,2]
[379936493,1755443446276,-480.0,0.00020547,2]
[379936495,1755443446286,-196.28044525,0.00020547,2]
[379936497,1755443446295,-480.0,0.00020547,2]
[379936499,1755443446304,-696.37,0.00020547,2]
[379936501,1755443446314,-480.0,0.00020547,2]
[379936503,1755443446324,-2087.54,0.00020547,2]
[379936505,1755443446334,-985.04,0.00020547,2]
[379936507,1755443446343,-480.0,0.00020547,2]
[379936509,1755443446353,-480.0,0.00020547,2]
[379936511,1755443446362,-480.0,0.00020547,2]
[379936513,1755443446372,-480.0,0.00020547,2]
[379936515,1755443446381,-480.0,0.00020547,2]
[379936517,1755443446391,-480.0,0.00020547,2]
[379936519,1755443446401,-480.0,0.00020547,2]
[379936521,1755443446410,-480.0,0.00020547,2]
[379936523,1755443446420,-191.53,0.00020547,2]
[379936525,1755443446430,-480.0,0.00020547,2]
[379936527,1755443446439,-480.0,0.00020547,2]
[379936529,1755443446449,-861.87,0.00020547,2]
[379936531,1755443446460,-1422.38,0.00020547,2]
[379936533,1755443446470,-5000.0,0.00020561,2]
[379936535,1755443446482,-328.0,0.00020575,2]
[379936537,1755443446492,-431.9864578,0.00020575,2]
[379936539,1755443446501,-328.0,0.000206,2]
[379936541,1755443446511,-328.0,0.0002063,2]
[379936543,1755443446521,-500.0,0.00020643,2]
[379936545,1755443446531,-480.0,0.00020649,2]
[379936547,1755443446540,-480.0,0.00020649,2]
[379936549,1755443446550,-328.0,0.0002065,2]
[379936551,1755443446559,-328.0,0.00020691,2]
[379936553,1755443446569,-972.0,0.00020709,2]
[379936555,1755443446577,-637.0,0.00020709,2]
[379936557,1755443446587,-2153.0,0.00020709,2]
[379936559,1755443446596,-408.0,0.0002071,2]
[379936561,1755443446605,-422.367,0.0002071,2]
[379936563,1755443446615,-720.0,0.00020717,20]
[379936565,1755443446624,-328.0,0.00020753,2]
[379936567,1755443446634,-580.6760442,0.00020767,2]
[379936569,1755443446644,-160.7855539,0.00020767,2]
[379936571,1755443446653,-328.0,0.00020774,2]
[379936572,1755443446663,-328.0,0.00020812,2]
[379936574,1755443446673,-151.0,0.00020816,2]
[379936576,1755443446683,-2000.0,0.00020816,2]
[379936578,1755443446693,-1000.0,0.00020816,2]
[379936580,1755443446702,-2000.0,0.00020816,2]
[379936582,1755443446712,-2000.0,0.00020816,2]
[379936584,1755443446722,-220.75172192,0.0002082,2]
[379936586,1755443446733,-480.0,0.00020821,2]
[379936588,1755443446743,-480.0,0.00020821,2]
[379936591,1755443446753,-480.0,0.00020821,2]
[379936593,1755443446763,-480.0,0.00020821,2]
[379936595,1755443446773,-480.0,0.00020821,2]
[379936597,1755443446782,-480.0,0.00020821,2]
[379936599,1755443446792,-480.0,0.00020821,2]
[379936601,1755443446801,-487.27339835,0.00020821,2]
[379936602,1755443446810,-480.0,0.00020821,2]
[379936605,1755443446819,-480.0,0.00020821,2]
[379936607,1755443446829,-480.0,0.00020821,2]
[379936609,1755443446839,-480.0,0.00020821,2]
[379936611,1755443446849,-2752.48,0.00020821,2]
[379936613,1755443446858,-480.0,0.00020821,2]
[379936615,1755443446868,-783.83,0.00020821,2]
[379936617,1755443446878,-480.0,0.00020821,2]
[379936618,1755443446887,-480.0,0.00020821,2]
[379936620,1755443446897,-480.0,0.00020821,2]
[379936622,1755443446906,-480.0,0.00020821,2]
[379936625,1755443446916,-480.0,0.00020821,2]
[379936627,1755443446925,-480.0,0.00020821,2]
[379936629,1755443446935,-480.0,0.00020821,2]
[379936630,1755443446944,-1853.11,0.00020821,2]
[379936632,1755443446954,-729.75,0.00020821,2]
[379936635,1755443446964,-516.71,0.00020821,2]
[379936637,1755443446975,-480.0,0.00020821,2]
[379936639,1755443446985,-335.05,0.00020821,2]
[379936641,1755443446995,-696.37,0.00020821,2]
[379936643,1755443447004,-480.0,0.00020821,2]
[379936644,1755443447013,-2087.54,0.00020821,2]
[379936646,1755443447022,-985.04,0.00020821,2]
[379936648,1755443447032,-480.0,0.00020821,2]
[379936650,1755443447041,-480.0,0.00020821,2]
[379936652,1755443447051,-480.0,0.00020821,2]
[379936654,1755443447060,-480.0,0.00020821,2]
[379936656,1755443447070,-480.0,0.00020821,2]
[379936658,1755443447080,-480.0,0.00020821,2]
[379936660,1755443447090,-480.0,0.00020821,2]
[379936663,1755443447101,-480.0,0.00020821,2]
[379936665,1755443447110,-547.60411316,0.00020821,2]
[379936667,1755443447120,-321.95,0.00020821,2]
[379936669,1755443447129,-861.87,0.00020821,2]
[379936670,1755443447139,-1422.38,0.00020821,2]
[379936672,1755443447150,-293.7943279,0.00020849,2]
[379936674,1755443447159,-500.0,0.00020861,2]
[379936677,1755443447171,-328.0,0.00020868,2]
[379936679,1755443447181,-1085.16894155,0.00020889,2]
[379936681,1755443447194,-1000.0,0.00020889,2]
[379936683,1755443447204,-7062.17957482,0.00020907,2]
[379936685,1755443447214,-281.48422209,0.0002092,2]
[379936687,1755443447226,-480.0,0.00020923,2]
[379936689,1755443447235,-480.0,0.00020923,2]
[379936691,1755443447245,-496.25882972,0.00020937,2]
[379936693,1755443447255,-360.0,0.00020956,2]
[379936695,1755443447265,-1499.65371421,0.00020999,2]
[379936697,1755443447275,-150.0,0.00021,2]
[379936699,1755443447285,-2000.0,0.00021016,2]
[379936701,1755443447296,-150.0,0.00021021,2]
[379936703,1755443447305,-150.0,0.00021021,2]
[379936705,1755443447315,-328.0,0.00021037,2]
[379936707,1755443447325,-328.0,0.00021044,2]
[379936709,1755443447335,-186.0,0.00021074,7]
[379936711,1755443447346,-480.0,0.00021095,2]
[379936713,1755443447356,-480.0,0.00021095,2]
[379936715,1755443447365,-480.0,0.00021095,2]
[379936717,1755443447375,-480.0,0.00021095,2]
[379936719,1755443447385,-480.0,0.00021095,2]
[379936721,1755443447395,-480.0,0.00021095,2]
[379936722,1755443447404,-480.0,0.00021095,2]
[379936725,1755443447414,-480.0,0.00021095,2]
[379936726,1755443447424,-480.0,0.00021095,2]
[379936728,1755443447433,-480.0,0.00021095,2]
[379936730,1755443447443,-480.0,0.00021095,2]
[379936732,1755443447453,-2752.48,0.00021095,2]
[379936735,1755443447463,-480.0,0.00021095,2]
[379936737,1755443447473,-783.83,0.00021095,2]
[379936739,1755443447483,-450.71,0.00021095,2]
[379936741,1755443447493,-480.0,0.00021095,2]
[379936743,1755443447502,-480.0,0.00021095,2]
[379936744,1755443447512,-480.0,0.00021095,2]
[379936746,1755443447522,-480.0,0.00021095,2]
[379936749,1755443447532,-173.28,0.00021095,2]
[379936751,1755443447542,-480.0,0.00021095,2]
[379936753,1755443447552,-1853.11,0.00021095,2]
[379936755,1755443447563,-729.75,0.00021095,2]
[379936757,1755443447574,-516.71,0.00021095,2]
[379936759,1755443447584,-480.0,0.00021095,2]
[379936761,1755443447594,-696.37,0.00021095,2]
[379936763,1755443447604,-480.0,0.00021095,2]
[379936765,1755443447614,-2087.54,0.00021095,2]
[379936767,1755443447624,-985.04,0.00021095,2]
[379936769,1755443447634,-480.0,0.00021095,2]
[379936771,1755443447644,-480.0,0.00021095,2]
[379936773,1755443447654,-480.0,0.00021095,2]
[379936775,1755443447663,-480.0,0.00021095,2]
[379936777,1755443447673,-480.0,0.00021095,2]
[379936779,1755443447683,-480.0,0.00021095,2]
[379936781,1755443447692,-480.0,0.00021095,2]
[379936783,1755443447702,-560.42535419,0.00021095,2]
[379936785,1755443447712,-861.87,0.00021095,2]
[379936787,1755443447721,-1422.38,0.00021095,2]
[379936789,1755443447732,-500.0,0.000211,2]
[379936791,1755443447742,-500.0,0.000211,2]
[379936793,1755443447752,-573.29265701,0.000211,2]
[379936795,1755443447761,-500.0,0.00021115,2]
[379936797,1755443447771,-500.0,0.00021115,2]
[379936799,1755443447781,-500.0,0.00021115,2]
[379936801,1755443447791,-200.0,0.0002115,2]
[379936803,1755443447802,-600.0,0.00021182,2]
[379936805,1755443447811,-328.0,0.00021185,2]
[379936807,1755443447822,-500.0,0.00021191,2]
[379936809,1755443447832,-238.19,0.00021194,2]
[379936811,1755443447841,-480.0,0.00021197,2]
[379936813,1755443447850,-480.0,0.00021197,2]
[379936815,1755443447861,-328.0,0.00021261,2]
[379936817,1755443447870,-500.0,0.00021286,2]
[379936819,1755443447880,-328.0,0.00021303,2]
[379936821,1755443447889,-227.68549793,0.00021315,2]
[379936823,1755443447898,-500.0,0.00021333,2]
[379936825,1755443447908,-2200.0,0.00021333,2]
[379936827,1755443447920,-2500.0,0.00021364,2]
[379936830,1755443447930,-2500.0,0.00021364,2]
[379936832,1755443447939,-2500.0,0.00021364,2]
[379936833,1755443447948,-501.08647519,0.00021365,2]
[379936835,1755443447958,-480.0,0.00021369,2]
[379936838,1755443447969,-480.0,0.00021369,2]
[379936840,1755443447980,-480.0,0.00021369,2]
[379936841,1755443447990,-480.0,0.00021369,2]
[379936843,1755443447999,-480.0,0.00021369,2]
[379936845,1755443448009,-480.0,0.00021369,2]
[379936848,1755443448019,-480.0,0.00021369,2]
[379936849,1755443448033,-480.0,0.00021369,2]
[379936850,1755443448043,-480.0,0.00021369,2]
[379936851,1755443448054,-480.0,0.00021369,2]
[379936852,1755443448065,-480.0,0.00021369,2]
[379936853,1755443448075,-2752.48,0.00021369,2]
[379936854,1755443448086,-480.0,0.00021369,2]
[379936855,1755443448097,-783.83,0.00021369,2]
[379936856,1755443448107,-480.0,0.00021369,2]
[379936857,1755443448117,-480.0,0.00021369,2]
[379936858,1755443448127,-480.0,0.00021369,2]
[379936859,1755443448137,-480.0,0.00021369,2]
[379936861,1755443448147,-480.0,0.00021369,2]
[379936863,1755443448157,-1853.11,0.00021369,2]
[379936865,1755443448167,-729.75,0.00021369,2]
[379936867,1755443448178,-516.71,0.00021369,2]
[379936869,1755443448192,-480.0,0.00021369,2]
[379936871,1755443448202,-696.37,0.00021369,2]
[379936873,1755443448212,-480.0,0.00021369,2]
[379936875,1755443448222,-2087.54,0.00021369,2]
[379936877,1755443448236,-985.04,0.00021369,2]
[379936879,1755443448246,-480.0,0.00021369,2]
[379936881,1755443448256,-480.0,0.00021369,2]
[379936883,1755443448268,-588.14963229,0.00021369,2]
[379936885,1755443448279,-480.0,0.00021369,2]
[379936887,1755443448290,-480.0,0.00021369,2]
[379936890,1755443448301,-480.0,0.00021369,2]
[379936892,1755443448311,-480.0,0.00021369,2]
[379936894,1755443448320,-861.87,0.00021369,2]
[379936896,1755443448330,-1422.38,0.00021369,2]
[379936898,1755443448340,-150.0,0.000214,10]
[379936900,1755443448349,-7062.17957482,0.0002141,2]
[379936902,1755443448359,-1500.0,0.00021437,2]
[379936904,1755443448369,-500.0,0.00021452,2]
[379936906,1755443448378,-275.89,0.00021471,2]
[379936907,1755443448388,-480.0,0.00021471,2]
[379936910,1755443448399,-522.748646,0.00021484,14]
[379936912,1755443448409,-500.0,0.00021484,14]
[379936914,1755443448419,-460.0,0.00021504,2]
[379936916,1755443448429,-2500.0,0.00021564,2]
[379936918,1755443448439,-970.0,0.000216,2]
[379936920,1755443448448,-328.0,0.00021642,2]
[379936922,1755443448458,-480.0,0.00021643,2]
[379936924,1755443448468,-480.0,0.00021643,2]
[379936926,1755443448478,-480.0,0.00021643,2]
[379936928,1755443448488,-480.0,0.00021643,2]
[379936930,1755443448498,-480.0,0.00021643,2]
[379936932,1755443448508,-480.0,0.00021643,2]
[379936934,1755443448518,-480.0,0.00021643,2]
[379936936,1755443448528,-480.0,0.00021643,2]
[379936938,1755443448538,-480.0,0.00021643,2]
[379936940,1755443448548,-480.0,0.00021643,2]
[379936942,1755443448558,-480.0,0.00021643,2]
[379936944,1755443448569,-2752.48,0.00021643,2]
[379936946,1755443448579,-480.0,0.00021643,2]
[379936949,1755443448590,-783.83,0.00021643,2]
[379936951,1755443448600,-480.0,0.00021643,2]
[379936953,1755443448610,-480.0,0.00021643,2]
[379936955,1755443448620,-480.0,0.00021643,2]
[379936957,1755443448630,-480.0,0.00021643,2]
[379936959,1755443448641,-480.0,0.00021643,2]
[379936961,1755443448651,-1853.11,0.00021643,2]
[379936963,1755443448661,-729.75,0.00021643,2]
[379936965,1755443448671,-516.71,0.00021643,2]
[379936967,1755443448681,-480.0,0.00021643,2]
[379936969,1755443448691,-696.37,0.00021643,2]
[379936971,1755443448701,-480.0,0.00021643,2]
[379936973,1755443448711,-2087.54,0.00021643,2]
[379936975,1755443448721,-985.04,0.00021643,2]
[379936977,1755443448733,-350.91122362,0.00021643,2]
[379936979,1755443448743,-480.0,0.00021643,2]
[379936981,1755443448753,-480.0,0.00021643,2]
[379936983,1755443448763,-480.0,0.00021643,2]
[379936985,1755443448774,-480.0,0.00021643,2]
[379936987,1755443448784,-480.0,0.00021643,2]
[379936989,1755443448795,-861.87,0.00021643,2]
[379936991,1755443448806,-1422.38,0.00021643,2]
[379936994,1755443448821,-1000.0,0.00021648,2]
[379936996,1755443448852,-303.91255009,0.00021648,2]
[379936997,1755443448885,-500.0,0.00021663,2]
[379936999,1755443448898,-500.0,0.00021663,2]
[379937001,1755443448909,-521.94377014,0.00021663,2]
[379937019,1755443449071,-500.0,0.00021739,2]
[379937022,1755443449103,-480.0,0.00021745,2]
[379937024,1755443449114,-328.0,0.00021798,2]
[379937026,1755443449127,-160.0,0.000218,3]
[379937028,1755443449137,-576.376,0.00021817,2]
[379937030,1755443449147,-328.0,0.00021825,2]
[379937032,1755443449157,-5983.83591318,0.00021852,2]
[379937034,1755443449167,-328.0,0.00021877,2]
[379937036,1755443449177,-500.0,0.00021906,2]
[379937038,1755443449191,-340.84167788,0.00021906,2]
[379937040,1755443449201,-258.63436774,0.00021906,2]
[379937042,1755443449210,-500.0,0.00021906,2]
[379937044,1755443449220,-160.6223693,0.00021906,2]
[379937046,1755443449231,-3000.0,0.00021912,2]
[379937048,1755443449241,-3000.0,0.00021912,2]
[379937050,1755443449253,-3000.0,0.00021912,2]
[379937052,1755443449263,-7062.17957482,0.00021913,2]
[379937054,1755443449274,-480.0,0.00021917,2]
[379937056,1755443449284,-480.0,0.00021917,2]
[379937058,1755443449294,-480.0,0.00021917,2]
[379937060,1755443449304,-480.0,0.00021917,2]
[379937062,1755443449314,-364.95793693,0.00021917,2]
[379937064,1755443449324,-480.0,0.00021917,2]
[379937066,1755443449334,-480.0,0.00021917,2]
[379937068,1755443449344,-500.0,0.00021917,2]
[379937070,1755443449354,-500.0,0.00021917,2]
[379937072,1755443449363,-500.0,0.00021917,2]
[379937074,1755443449373,-500.0,0.00021917,2]
[379937076,1755443449383,-500.0,0.00021917,2]
[379937078,1755443449393,-500.0,0.00021917,2]
[379937080,1755443449403,-500.0,0.00021917,2]
[379937082,1755443449413,-500.0,0.00021917,2]
[379937084,1755443449422,-500.0,0.00021917,2]
[379937086,1755443449432,-500.0,0.00021917,2]
[379937088,1755443449441,-500.0,0.00021917,2]
[379937090,1755443449451,-591.19477465,0.00021917,2]
[379937092,1755443449460,-480.0,0.00021917,2]
[379937094,1755443449470,-335.18367787,0.00021917,2]
[379937096,1755443449482,-480.0,0.00021917,2]
[379937098,1755443449491,-2752.48,0.00021917,2]
[379937100,1755443449503,-480.0,0.00021917,2]
[379937102,1755443449512,-783.83,0.00021917,2]
[379937104,1755443449522,-480.0,0.00021917,2]
[379937106,1755443449532,-480.0,0.00021917,2]
[379937108,1755443449541,-480.0,0.00021917,2]
[379937110,1755443449551,-480.0,0.00021917,2]
[379937112,1755443449561,-480.0,0.00021917,2]
[379937114,1755443449570,-1853.11,0.00021917,2]
[379937116,1755443449580,-729.75,0.00021917,2]
[379937118,1755443449590,-516.71,0.00021917,2]
[379937120,1755443449600,-480.0,0.00021917,2]
[379937122,1755443449610,-696.37,0.00021917,2]
[379937124,1755443449620,-304.18692115,0.00021917,2]
[379937142,1755443449779,-480.0,0.00019178,2]
[379937144,1755443449789,-480.0,0.00019452,2]
[379937146,1755443449798,-480.0,0.00019452,2]